bitfinex-derivatives/quotes_SOLF0:USTF0_20240927
["timestamp","ask_amount","ask_price","bid_price","bid_amount"]
[1727415455921,3.1977,156.34,156.29,10.56185629]
[1727415456121,3.1977,156.34,156.3,5.84123128]
[1727415456325,3.1977,156.34,156.27,4.0127]
[1727415456525,1.2808,156.39,156.27,4.0127]
[1727415456526,1.2808,156.39,156.28,10.55828879]
[1727415456725,1.2808,156.39,156.29,10.55800793]
[1727415456920,1.2808,156.39,156.3,10.55778297]
[1727415457124,3.1974,156.36,156.32,3.1978]
[1727415457627,3.1971,156.37,156.33,3.1977]
[1727415457827,3.1971,156.37,156.28,7.54752664]
[1727415458026,94.11473523,156.4,156.29,5.83699079]
[1727415458228,94.11473523,156.4,156.3,5.83699079]
[1727415458429,94.11473523,156.4,156.27,4.0127]
[1727415458630,94.11473523,156.4,156.28,18.09540966]
[1727415458821,94.11473523,156.4,156.29,10.55051641]
[1727415459028,94.11473523,156.4,156.3,5.83495813]
[1727415459221,3.1974,156.35,156.32,3.1979]
[1727415460331,94.11473523,156.4,156.32,3.1979]
[1727415461235,3.1977,156.34,156.31,3.1982]
[1727415461432,94.11473523,156.4,156.28,4.71107884]
[1727415461633,94.11473523,156.4,156.29,5.8294013]
[1727415461833,94.11473523,156.4,156.32,3.1979]
[1727415462029,94.11473523,156.4,156.27,17.93918986]
[1727415462334,94.11473523,156.4,156.32,3.198]
[1727415462535,94.11473523,156.4,156.29,5.82940176]
[1727415462729,94.11473523,156.4,156.27,4.0127]
[1727415462927,3.1976,156.35,156.31,3.198]
[1727415463133,94.11473523,156.4,156.31,3.198]
[1727415463333,1.3539,156.39,156.28,5.82735367]
[1727415463535,1.3539,156.39,156.27,4.0127]
[1727415463924,3.1978,156.34,156.28,5.82766765]
[1727415464232,3.1978,156.34,156.3,3.1983]
[1727415464623,3.198,156.33,156.3,3.1983]
[1727415466033,1.3539,156.39,156.27,4.0127]
[1727415466732,3.1982,156.32,156.28,3.1987]
[1727415467833,3.1983,156.31,156.28,3.1987]
[1727415469139,3.1983,156.31,156.29,3.1986]
[1727415469735,3.1981,156.32,156.29,3.1986]
[1727415473130,3.24671529,156.35,156.27,4.0127]
[1727415473337,3.198,156.33,156.27,4.0127]
[1727415473838,3.198,156.33,156.3,3.1984]
[1727415474631,1.3539,156.39,156.27,4.0127]
[1727415475335,3.1973,156.36,156.33,3.1977]
[1727415475535,1.3539,156.39,156.33,3.1977]
[1727415475733,3.1973,156.36,156.33,3.1977]
[1727415475932,1.3539,156.39,156.33,3.1977]
[1727415476535,94.11473523,156.4,156.28,5.82543435]
[1727415476736,94.11473523,156.4,156.27,4.0127]
[1727415476938,3.1968,156.38,156.28,10.53280258]
[1727415477138,3.1968,156.38,156.27,4.0127]
[1727415477139,3.1968,156.38,156.35,3.1973]
[1727415480039,3.197,156.37,156.35,3.1973]
[1727415480240,3.197,156.37,156.34,3.1976]
[1727415480636,3.1973,156.36,156.34,3.1976]
[1727415482146,3.1976,156.35,156.28,9.41295879]
[1727415482443,3.1976,156.35,156.29,5.82297391]
[1727415482737,3.1973,156.36,156.33,3.1977]
[1727415482942,0.8356,156.42,156.29,5.82297247]
[1727415483143,0.8356,156.42,156.35,3.1973]
[1727415483745,3.1969,156.38,156.35,3.1973]
[1727415487646,3.1969,156.38,156.28,9.41056248]
[1727415487947,3.1969,156.38,156.29,5.82069468]
[1727415488149,3.1969,156.38,156.35,3.1973]
[1727415489044,4.47800358,156.43,156.28,4.70403765]
[1727415489247,4.47800358,156.43,156.29,5.82036818]
[1727415489453,4.47800358,156.43,156.28,4.70403765]
[1727415489649,3.1976,156.35,156.32,3.1979]
[1727415490146,3.1976,156.35,156.33,3.1978]
[1727415491752,3.1977,156.34,156.32,3.198]
[1727415492350,4.47800358,156.43,156.27,58.45088565]
[1727415493249,6.3926,156.41,156.29,3.1985]
[1727415494153,3.198,156.33,156.29,3.1985]
[1727415494350,3.20459381,156.35,156.27,58.45088565]
[1727415494549,6.3926,156.41,156.27,58.45088565]
[1727415494746,3.198,156.33,156.27,58.45088565]
[1727415494948,3.19947516,156.35,156.29,3.1986]
[1727415495152,6.3926,156.41,156.29,3.1986]
[1727415495853,6.3926,156.41,156.27,58.45088565]
[1727415496453,6.3926,156.41,156.31,3.1981]
[1727415496949,3.1976,156.35,156.31,3.1981]
[1727415497147,6.36636327,156.35,156.27,58.45088565]
[1727415497346,3.1976,156.35,156.27,58.45088565]
[1727415497752,3.1976,156.35,156.31,3.1981]
[1727415497953,6.43098621,156.35,156.31,3.1981]
[1727415499152,3.1977,156.34,156.31,3.1981]
[1727415500455,6.42160866,156.35,156.32,3.198]
[1727415501847,4.47800358,156.43,156.27,58.45088565]
[1727415502055,4.47800358,156.43,156.28,10.53474069]
[1727415502251,4.47800358,156.43,156.29,5.82623246]
[1727415502554,4.47800358,156.43,156.28,4.70896357]
[1727415502953,3.197,156.37,156.34,3.1975]
[1727415504961,4.47800358,156.43,156.3,5.82768476]
[1727415505259,4.47800358,156.43,156.29,4.70970758]
[1727415505459,3.197,156.38,156.3,5.8283002]
[1727415505664,3.197,156.38,156.35,3.1974]
[1727415506062,3.1971,156.37,156.35,3.1974]
[1727415507962,3.1971,156.37,156.34,3.1976]
[1727415509166,3.1974,156.36,156.33,3.1977]
[1727415509972,3.1974,156.36,156.34,3.1976]
[1727415511971,3.1971,156.37,156.34,3.1976]
[1727415512869,3.1969,156.38,156.31,4.71511106]
[1727415513069,3.1969,156.38,156.32,5.83596388]
[1727415513271,3.1969,156.38,156.33,3.9932]
[1727415513669,3.1969,156.38,156.35,3.1973]
[1727415515075,3.1969,156.38,156.33,3.9932]
[1727415515768,3.1969,156.38,156.35,3.1973]
[1727415519779,3.1971,156.37,156.34,3.1975]
[1727415521683,4.47800358,156.43,156.34,3.1975]
[1727415522884,3.1972,156.37,156.34,3.1975]
[1727415523586,3.1978,156.34,156.28,6.36883408]
[1727415523783,3.1978,156.34,156.29,24.56603744]
[1727415523984,3.1978,156.34,156.3,24.56603744]
[1727415524185,3.1978,156.34,156.31,21.35094511]
[1727415524486,3.1978,156.34,156.32,10.58398574]
[1727415524685,3.1978,156.34,156.33,5.8538233]
[1727415525485,3.1975,156.35,156.33,5.8538233]
[1727415525691,3.1975,156.35,156.34,5.8538233]
[1727415528094,3.1975,156.35,156.33,3.1978]
[1727415528298,3.1975,156.35,156.34,5.85335932]
[1727415530093,3.1973,156.36,156.34,9.05095932]
[1727415530292,4.47800358,156.43,156.29,6.41297048]
[1727415530593,4.47800358,156.43,156.35,3.1974]
[1727415531495,3.1969,156.38,156.36,3.1972]
[1727415531694,4.47800358,156.43,156.32,3.16091599]
[1727415531695,3.20450358,156.43,156.32,3.16091599]
[1727415531891,7.2246,156.45,156.33,8.5380297]
[1727415531892,3.1964,156.41,156.33,8.5380297]
[1727415532089,97.23233953,156.46,156.34,13.63988628]
[1727415532293,97.23233953,156.46,156.35,24.56417618]
[1727415532591,97.23233953,156.46,156.36,24.55687162]
[1727415532791,3.1955,156.45,156.37,24.55687162]
[1727415532992,3.1955,156.45,156.38,24.55687162]
[1727415533192,3.1955,156.45,156.39,13.30172406]
[1727415533393,3.1956,156.44,156.41,3.196]
[1727415534389,1.2909,156.53,156.4,1.3745]
[1727415534586,83.145,156.6,156.41,10.5664198]
[1727415534785,83.145,156.6,156.42,24.52251394]
[1727415534786,0.8326,156.58,156.42,24.52251394]
[1727415534985,0.8326,156.58,156.43,5.84267697]
[1727415535185,0.8326,156.58,156.4,4.60337705]
[1727415535186,0.8326,156.58,156.44,5.84267697]
[1727415535390,0.8326,156.58,156.47,3.1948]
[1727415536495,0.8326,156.58,156.46,3.1951]
[1727415536496,3.1943,156.51,156.46,3.1951]
[1727415536895,6.32023251,156.52,156.45,1.3409]
[1727415537090,3.12613251,156.52,156.47,3.1948]
[1727415537390,3.1935,156.55,156.45,1.3409]
[1727415537689,0.8326,156.58,156.45,1.3409]
[1727415537894,0.8326,156.58,156.46,2.5229]
[1727415538595,4.01816833,156.58,156.46,2.5229]
[1727415538995,4.01816833,156.58,156.47,3.1948]
[1727415539593,3.1941,156.52,156.47,3.1948]
[1727415540191,3.1941,156.52,156.48,3.1948]
[1727415541497,3.1941,156.52,156.49,3.1945]
[1727415541690,3.1941,156.52,156.46,2.5229]
[1727415542390,3.1941,156.52,156.49,3.1944]
[1727415543394,3.1938,156.53,156.5,3.1944]
[1727415543595,4.01816833,156.58,156.46,2.5229]
[1727415543901,4.01816833,156.58,156.53,3.1936]
[1727415543902,3.18556833,156.58,156.53,3.1936]
[1727415544100,1.2909,156.62,156.53,3.1936]
[1727415544301,1.2909,156.62,156.46,2.5229]
[1727415544494,3.193,156.57,156.54,3.1935]
[1727415544891,1.2909,156.62,156.47,5.81139966]
[1727415545092,3.1928,156.58,156.47,5.81139966]
[1727415545301,3.21551425,156.59,156.46,2.5229]
[1727415545499,3.193,156.57,156.54,3.1934]
[1727415545705,3.13610808,156.59,156.47,5.80219788]
[1727415545901,1.2909,156.62,156.47,5.80219788]
[1727415546200,3.1931,156.57,156.53,3.1936]
[1727415546403,3.1931,156.57,156.46,8.32509788]
[1727415546904,3.1927,156.58,156.46,8.32509788]
[1727415547503,3.1927,156.58,156.46,8.31756482]
[1727415548105,2.1989,156.64,156.46,8.31756482]
[1727415548294,5.37494019,156.64,156.46,8.31756482]
[1727415548602,2.1989,156.64,156.46,8.31756482]
[1727415548798,3.1929,156.57,156.54,3.1935]
[1727415548996,5.36324048,156.64,156.51,3.1438986]
[1727415549197,2.1989,156.64,156.52,3.9676]
[1727415549502,3.1928,156.58,156.52,3.9676]
[1727415549806,2.1989,156.64,156.52,3.9676]
[1727415550103,5.46129767,156.64,156.56,3.193]
[1727415550305,4.62979767,156.64,156.56,3.193]
[1727415550600,3.1925,156.6,156.56,3.193]
[1727415550803,4.62979767,156.64,156.56,3.193]
[1727415551503,4.62979767,156.64,156.57,3.1929]
[1727415551902,4.62979767,156.64,156.52,3.9676]
[1727415551903,3.26239767,156.64,156.52,3.9676]
[1727415552101,3.1923,156.61,156.58,3.1927]
[1727415553397,1.2548,156.68,156.52,3.9676]
[1727415553803,3.1919,156.63,156.59,3.1923]
[1727415553999,3.16425554,156.66,156.59,3.1923]
[1727415554204,1.2548,156.68,156.59,3.1923]
[1727415554407,3.1919,156.63,156.59,3.1923]
[1727415554707,3.1919,156.63,156.6,3.1923]
[1727415555907,3.1915,156.65,156.52,3.9676]
[1727415556111,3.21152136,156.66,156.52,3.9676]
[1727415556410,95.40218307,156.7,156.52,3.9676]
[1727415556913,94.08748307,156.7,156.52,3.9676]
[1727415557309,94.08748307,156.7,156.54,6.3869]
[1727415557612,3.191,156.67,156.54,6.3869]
[1727415558106,94.08748307,156.7,156.52,3.9676]
[1727415558303,94.08748307,156.7,156.53,7.57849266]
[1727415558509,97.27778307,156.7,156.67,3.1908]
[1727415558902,94.08748307,156.7,156.58,1.3449]
[1727415559310,3.1906,156.69,156.59,2.7562]
[1727415559507,3.1906,156.69,156.59,6.02492423]
[1727415560710,3.1906,156.69,156.65,3.1911]
[1727415560911,3.1906,156.69,156.59,6.02492423]
[1727415561512,3.1906,156.69,156.66,3.1909]
[1727415562014,1.2528,156.73,156.65,3.1912]
[1727415562209,1.2528,156.73,156.59,6.02492423]
[1727415562515,3.1904,156.7,156.67,3.1908]
[1727415564009,3.1905,156.69,156.67,3.1908]
[1727415567708,3.1904,156.7,156.67,3.1908]
[1727415568208,1.2528,156.73,156.68,3.1907]
[1727415568409,3.1902,156.71,156.68,3.1907]
[1727415569207,3.1903,156.7,156.67,3.1908]
[1727415573208,3.1905,156.69,156.66,3.191]
[1727415573516,6.3778,156.77,156.59,6.02492423]
[1727415574014,6.3782,156.76,156.65,3.1913]
[1727415574217,6.3782,156.76,156.59,6.02492423]
[1727415574410,3.1908,156.68,156.65,3.1912]
[1727415574610,3.13139009,156.7,156.59,6.02492423]
[1727415574813,6.3787,156.75,156.59,6.02492423]
[1727415575014,3.1912,156.66,156.63,3.1916]
[1727415575207,3.15277457,156.7,156.59,6.02492423]
[1727415575405,6.3787,156.75,156.59,6.02492423]
[1727415575621,6.3787,156.75,156.64,3.1913]
[1727415576717,6.3791,156.74,156.63,3.1917]
[1727415576917,0.8291,156.73,156.59,6.02492423]
[1727415577215,0.8291,156.73,156.64,3.1914]
[1727415578616,3.1909,156.68,156.65,3.1913]
[1727415578810,0.8291,156.73,156.59,6.02492423]
[1727415579418,0.8291,156.73,156.65,3.1911]
[1727415579419,3.1907,156.68,156.65,3.1911]
[1727415580918,3.1906,156.69,156.66,3.1911]
[1727415582221,3.1907,156.68,156.66,3.1911]
[1727415583818,3.1907,156.68,156.65,3.1912]
[1727415584019,3.191,156.67,156.65,3.1912]
[1727415584820,3.191,156.67,156.59,6.02492423]
[1727415585223,3.191,156.67,156.64,3.1914]
[1727415589029,3.13103224,156.7,156.59,6.02492423]
[1727415589224,1.2965,156.72,156.59,6.02492423]
[1727415589419,1.2965,156.72,156.63,3.1915]
[1727415590027,3.1912,156.66,156.63,3.1915]
[1727415590428,3.1912,156.66,156.64,3.1915]
[1727415591429,3.191,156.67,156.64,3.1915]
[1727415593533,3.191,156.67,156.65,3.1913]
[1727415593850,3.1908,156.68,156.65,3.1913]
[1727415594825,3.1909,156.67,156.59,6.02492423]
[1727415595934,3.1909,156.67,156.64,3.1914]
[1727415596926,3.1909,156.67,156.59,6.02492423]
[1727415597134,3.1909,156.67,156.65,3.1912]
[1727415599633,3.14955194,156.69,156.58,1.3449]
[1727415599839,3.14955194,156.69,156.37,88.61550097]
[1727415599840,1.2965,156.72,156.54,2.663]
[1727415600330,6.3807,156.7,156.54,2.663]
[1727415600534,3.23536097,156.7,156.54,2.663]
[1727415600734,3.1927,156.59,156.55,3.1932]
[1727415601138,6.3811,156.69,156.54,2.663]
[1727415601942,6.3811,156.69,156.58,3.1926]
[1727415602533,3.192,156.62,156.58,3.1926]
[1727415602743,6.3811,156.69,156.58,3.1926]
[1727415603438,3.1923,156.61,156.57,3.1929]
[1727415605534,3.1919,156.63,156.54,2.663]
[1727415605737,3.1919,156.63,156.54,8.45763994]
[1727415606144,3.1916,156.64,156.54,8.45763994]
[1727415606439,3.1916,156.64,156.55,5.79463994]
[1727415606644,3.1916,156.64,156.61,3.1921]
[1727415607046,3.1917,156.63,156.61,3.1921]
[1727415608338,3.1917,156.63,156.6,3.1923]
[1727415610241,3.1916,156.64,156.61,3.1921]
[1727415610943,3.25891914,156.68,156.59,3.12289135]
[1727415611138,1.2965,156.72,156.6,2.7186]
[1727415611445,1.2965,156.72,156.61,1.3489]
[1727415611637,3.1912,156.66,156.63,3.1916]
[1727415611840,1.2965,156.72,156.61,1.3489]
[1727415612242,3.1905,156.69,156.66,3.191]
[1727415612641,76.62,156.74,156.66,3.191]
[1727415612844,3.1907,156.68,156.65,3.1912]
[1727415613040,76.62,156.74,156.61,1.3489]
[1727415613441,3.1909,156.67,156.64,3.1914]
[1727415613837,2.184,156.77,156.61,1.3489]
[1727415614141,3.1911,156.66,156.63,3.1916]
[1727415614337,2.184,156.77,156.61,1.3489]
[1727415614539,2.184,156.77,156.62,5.81981813]
[1727415614739,3.1909,156.68,156.64,3.1913]
[1727415615246,3.1909,156.68,156.65,3.1913]
[1727415616147,3.1909,156.67,156.65,3.1913]
[1727415616548,2.184,156.77,156.64,3.1915]
[1727415616750,3.1912,156.66,156.61,1.3489]
[1727415616951,3.21913766,156.7,156.62,5.82356859]
[1727415617149,93.89884394,156.75,156.62,3.1918]
[1727415617346,3.1914,156.65,156.62,3.1918]
[1727415617849,3.1914,156.65,156.63,3.1917]
[1727415618046,6.379,156.74,156.61,1.3489]
[1727415618350,6.379,156.74,156.64,3.1915]
[1727415618551,3.191,156.67,156.64,3.1915]
[1727415618849,6.379,156.74,156.65,3.1912]
[1727415619440,3.1909,156.68,156.65,3.1912]
[1727415619649,93.89884394,156.75,156.61,1.3489]
[1727415619844,93.89884394,156.75,156.62,18.07984696]
[1727415620042,3.1908,156.68,156.63,10.54132734]
[1727415620346,93.89884394,156.75,156.64,10.54313097]
[1727415620550,93.89884394,156.75,156.65,5.82984502]
[1727415620751,93.89884394,156.75,156.61,1.3489]
[1727415620752,100.27744394,156.75,156.61,1.3489]
[1727415620947,93.89884394,156.75,156.62,5.83262934]
[1727415621153,6.3794,156.73,156.61,3.1921]
[1727415621450,6.3794,156.73,156.62,5.83339148]
[1727415621653,6.3794,156.73,156.61,3.1921]
[1727415621951,6.3794,156.73,156.62,5.83484387]
[1727415622151,6.3794,156.73,156.61,3.1921]
[1727415622453,6.3799,156.72,156.62,5.83650645]
[1727415622653,2.1139,156.71,156.6,2.7186]
[1727415622953,3.1916,156.64,156.61,13.74568057]
[1727415623152,3.1916,156.64,156.62,5.83654858]
[1727415623452,3.1916,156.64,156.61,3.1921]
[1727415623656,3.1916,156.64,156.62,5.83813441]
[1727415623952,3.1916,156.64,156.61,3.1921]
[1727415624143,3.1916,156.64,156.62,5.83813442]
[1727415624346,3.1916,156.64,156.61,3.1921]
[1727415624755,3.1914,156.65,156.62,9.03155794]
[1727415625049,3.1914,156.65,156.63,5.83965794]
[1727415625249,3.1914,156.65,156.62,3.1919]
[1727415625555,3.1914,156.65,156.63,5.8407379]
[1727415625754,3.1914,156.65,156.62,3.1919]
[1727415626052,3.1914,156.65,156.63,5.84076122]
[1727415626252,3.1914,156.65,156.62,3.1919]
[1727415626452,3.1914,156.65,156.63,5.84116516]
[1727415626653,3.1914,156.65,156.62,3.1919]
[1727415626851,3.1914,156.65,156.63,5.84116516]
[1727415627051,3.1914,156.65,156.62,3.1919]
[1727415627255,3.1914,156.65,156.63,5.8413546]
[1727415627555,3.1912,156.66,156.6,2.7186]
[1727415627751,3.1912,156.66,156.61,10.561879]
[1727415628016,3.1912,156.66,156.62,4.72067873]
[1727415628255,3.1912,156.66,156.63,3.1916]
[1727415629451,3.1912,156.66,156.6,2.7186]
[1727415629452,3.1912,156.66,156.64,3.1915]
[1727415630057,2.1139,156.71,156.6,2.7186]
[1727415630058,1.2848,156.71,156.61,13.94949517]
[1727415630259,1.2848,156.71,156.62,18.1137264]
[1727415630449,3.191,156.67,156.63,10.56115311]
[1727415630649,3.191,156.67,156.64,9.03219621]
[1727415630853,3.191,156.67,156.64,3.1914]
[1727415631961,3.1911,156.66,156.64,3.1914]
[1727415632259,1.2848,156.71,156.61,1.3024]
[1727415632260,3.19444399,156.7,156.61,1.3024]
[1727415632460,3.1915,156.65,156.62,10.56119022]
[1727415632661,3.22285775,156.69,156.63,5.84081768]
[1727415632855,1.2848,156.71,156.62,3.1918]
[1727415633055,1.2848,156.71,156.63,5.84122992]
[1727415633362,1.2848,156.71,156.61,3.192]
[1727415633657,3.1913,156.65,156.62,5.8417976]
[1727415633858,3.1913,156.65,156.62,3.1918]
[1727415634055,3.1724158,156.68,156.6,1.3625]
[1727415634262,3.1916,156.64,156.61,10.56311608]
[1727415634562,3.1916,156.64,156.62,5.84188504]
[1727415634859,3.1916,156.64,156.61,3.1921]
[1727415635055,3.1916,156.64,156.62,5.84219246]
[1727415635256,3.1916,156.64,156.61,3.1921]
[1727415635460,3.1916,156.64,156.62,5.84204858]
[1727415635661,3.1916,156.64,156.63,5.84204858]
[1727415636255,3.1916,156.64,156.61,3.1921]
[1727415636557,3.1916,156.64,156.62,9.0341032]
[1727415636763,3.1916,156.64,156.63,5.8422032]
[1727415637167,3.1916,156.64,156.63,5.84209236]
[1727415638263,3.1916,156.64,156.62,3.1919]
[1727415638678,3.1916,156.64,156.61,3.192]
[1727415638866,3.1917,156.63,156.61,3.192]
[1727415639163,3.1917,156.63,156.62,5.84245982]
[1727415639362,3.1916,156.64,156.62,5.84245982]
[1727415639563,3.1916,156.64,156.61,3.192]
[1727415639764,3.1916,156.64,156.62,9.03418912]
[1727415640065,3.1916,156.64,156.63,5.84219566]
[1727415640867,3.1914,156.65,156.62,3.1919]
[1727415641063,1.2848,156.71,156.6,4.47573357]
[1727415641262,93.89884394,156.75,156.61,20.77327583]
[1727415641568,93.89884394,156.75,156.62,10.56377457]
[1727415641569,3.191,156.67,156.62,10.56377457]
[1727415641768,95.23274394,156.75,156.63,5.84202847]
[1727415642063,95.23274394,156.75,156.64,10.56330417]
[1727415642367,95.23274394,156.75,156.65,5.84161323]
[1727415642571,3.1906,156.69,156.62,6.39788674]
[1727415642860,95.23274394,156.75,156.63,10.56259772]
[1727415643067,3.1905,156.69,156.64,10.56259772]
[1727415643268,3.1905,156.69,156.66,3.191]
[1727415644562,95.23274394,156.75,156.64,3.1913]
[1727415644868,95.23274394,156.75,156.65,5.84169122]
[1727415645162,95.23274394,156.75,156.64,3.1913]
[1727415645470,3.1909,156.67,156.65,5.84179344]
[1727415645660,3.1909,156.67,156.64,3.1913]
[1727415645865,3.1909,156.67,156.65,5.84179489]
[1727415646164,3.1909,156.67,156.64,3.1913]
[1727415646360,3.1909,156.67,156.65,5.84178843]
[1727415646568,3.1909,156.67,156.64,3.1913]
[1727415646767,3.1909,156.67,156.65,5.84178843]
[1727415646968,3.1909,156.67,156.64,3.1913]
[1727415647162,3.1909,156.67,156.65,5.84183059]
[1727415647364,3.1909,156.67,156.64,3.1913]
[1727415647671,3.1909,156.67,156.65,5.84191794]
[1727415647968,3.1909,156.67,156.64,3.1913]
[1727415648270,3.1909,156.67,156.65,5.8419225]
[1727415648493,3.1909,156.67,156.65,3.1913]
[1727415649965,3.1909,156.67,156.64,3.1914]
[1727415650166,3.1909,156.67,156.65,5.84191269]
[1727415650370,3.1909,156.67,156.64,3.1914]
[1727415650574,3.1909,156.67,156.65,5.84183514]
[1727415650771,3.1909,156.67,156.64,3.1914]
[1727415650969,3.1909,156.67,156.65,5.84176506]
[1727415651169,3.1909,156.67,156.64,3.1914]
[1727415651466,3.1909,156.67,156.65,9.03310436]
[1727415651670,3.1909,156.67,156.65,3.1913]
[1727415653970,3.1908,156.68,156.65,3.1913]
[1727415655069,3.1913,156.65,156.63,3.1917]
[1727415655269,6.3791,156.74,156.64,5.8417592]
[1727415655475,6.3791,156.74,156.61,2.6551]
[1727415655772,3.191,156.67,156.64,3.1914]
[1727415656168,3.1908,156.68,156.65,3.1911]
[1727415657374,3.1908,156.68,156.66,5.84113357]
[1727415657565,3.1908,156.68,156.65,3.1911]
[1727415657766,3.1908,156.68,156.66,5.84113357]
[1727415657968,3.1908,156.68,156.65,3.1911]
[1727415658170,3.1908,156.68,156.66,5.84113357]
[1727415658376,3.1908,156.68,156.65,3.1911]
[1727415658576,3.1908,156.68,156.66,5.84093441]
[1727415658875,3.1908,156.68,156.65,3.1911]
[1727415659570,3.1908,156.68,156.66,5.84074665]
[1727415659774,3.1908,156.68,156.65,3.1911]
[1727415659973,3.1908,156.68,156.66,5.84074669]
[1727415660173,3.1908,156.68,156.65,3.1911]
[1727415661176,3.1908,156.68,156.66,5.84057519]
[1727415661377,3.1908,156.68,156.65,3.1911]
[1727415661874,3.1908,156.68,156.66,5.84033684]
[1727415662079,3.1908,156.68,156.65,3.1911]
[1727415662274,3.1908,156.68,156.66,5.84021369]
[1727415662579,3.1908,156.68,156.65,3.1911]
[1727415664081,3.1909,156.67,156.65,3.1911]
[1727415665075,6.3775,156.78,156.61,2.6551]
[1727415665279,0.8295,156.8,156.62,12.23284745]
[1727415665479,3.1894,156.75,156.72,3.1898]
[1727415665682,5.37287275,156.8,156.72,3.1898]
[1727415665981,5.37287275,156.8,156.65,13.94347015]
[1727415666181,3.1894,156.75,156.72,3.1899]
[1727415666778,3.1895,156.74,156.72,3.1899]
[1727415667376,3.1895,156.74,156.71,3.19]
[1727415668583,3.1897,156.73,156.71,3.19]
[1727415669283,3.1897,156.73,156.72,9.8]
[1727415669583,5.37287275,156.8,156.72,9.8]
[1727415669780,5.37287275,156.8,156.79,9.8]
[1727415670178,5.37287275,156.8,156.78,9.8]
[1727415670381,5.37287275,156.8,156.79,9.8]
[1727415671284,8.56107275,156.8,156.79,9.8]
[1727415671686,5.37287275,156.8,156.78,9.8]
[1727415672381,3.1885,156.79,156.78,9.8]
[1727415676188,3.16307275,156.8,156.78,12.9886]
[1727415676394,3.16307275,156.8,156.69,3.24375017]
[1727415676395,1.3556,156.82,156.79,9.8]
[1727415676691,4.55258739,156.82,156.81,9.8]
[1727415676894,1.3556,156.82,156.81,9.8]
[1727415677083,3.1878,156.82,156.81,9.8]
[1727415677693,6.38478739,156.82,156.81,9.8]
[1727415678392,3.1878,156.82,156.81,9.8]
[1727415680892,6.39736736,156.82,156.81,9.8]
[1727415681494,3.1878,156.82,156.81,9.8]
[1727415693100,3.19043036,156.85,156.74,3.9314]
[1727415693298,9.8,156.86,156.81,9.8]
[1727415693700,3.1878,156.82,156.81,9.8]
[1727415699497,9.8,156.84,156.74,3.9314]
[1727415699807,9.8,156.78,156.75,8.80999999]
[1727415700098,116.22793504,156.84,156.76,9.8]
[1727415700303,9.8,156.79,156.76,9.8]
[1727415700505,6.3758,156.82,156.77,9.8]
[1727415700707,9.8,156.8,156.77,9.8]
[1727415701098,3.1887,156.78,156.77,9.8]
[1727415702601,6.3758,156.82,156.69,1.2852]
[1727415702602,9.8,156.79,156.69,1.2852]
[1727415702803,9.8,156.77,156.73,9.8]
[1727415703907,3.1895,156.74,156.73,9.8]
[1727415704303,3.18228322,156.75,156.69,1.2852]
[1727415704511,9.8,156.77,156.72,9.8]
[1727415705503,3.1897,156.73,156.69,4.4756]
[1727415705708,3.1897,156.73,156.72,9.8]
[1727415707810,9.8,156.76,156.71,9.8]
[1727415708011,13.0031126,156.76,156.71,9.8]
[1727415708913,3.1899,156.72,156.71,9.8]
[1727415709207,9.8,156.78,156.71,9.8]
[1727415709511,2.5671,156.81,156.74,9.8]
[1727415709811,9.8,156.79,156.74,9.8]
[1727415710311,3.1893,156.75,156.74,9.8]
[1727415714814,9.8,156.81,156.74,9.8]
[1727415715118,9.8,156.81,156.76,9.8]
[1727415715322,3.1889,156.77,156.76,9.8]
[1727415716212,3.1893,156.75,156.71,3.19]
[1727415716409,3.1893,156.75,156.74,9.8]
[1727415721216,3.1891,156.76,156.74,9.8]
[1727415721421,3.1891,156.76,156.75,9.8]
[1727415722618,9.8,156.83,156.75,9.8]